[Event "MCCT Chessable Masters 2022"]
[Site "Online"]
[Date "2022.05.16"]
[Round "10.3"]
[White "Giri, Anish"]
[Black "Mishra, Abhimanyu"]
[Result "1-0"]
[ECO "D46"]
[WhiteElo "2761"]
[BlackElo "2535"]
[Annotator "TA"]
[PlyCount "83"]
[EventDate "2022.05.19"]
[EventType "tourn"]
[EventCountry "NET"]
[SourceTitle "playchess.com"]
[Source "ChessBase"]
[SourceQuality "1"]
[TimeControl "900+10"]

{[%evp 14,83,23,18,26,25,34,30,43,20,14,22,33,29,8,22,17,35,17,23,24,21,19,8,48,41,41,39,39,39,40,46,39,46,60,61,79,47,86,75,100,81,112,84,112,77,90,92,116,114,107,97,193,194,284,81,130,110,100,96,110,60,75,45,924,935,992,715,1079,1071,1071,1020]} 1. Nf3 {[%emt 0:00:00]} d5 {[%emt 0:00:00]} 2. d4 {[%emt 0:00:01]} Nf6 {[%emt 0:00:02]} 3. c4 {[%emt 0:00:01]} c6 {[%emt 0:00:01]} 4. e3 {[%emt 0:00:01]} e6 {[%emt 0:00:01]} 5. Bd3 {[%emt 0:00:01]} dxc4 {[%emt 0:00:01]} 6. Bxc4 {[%emt 0:00:00]} Nbd7 {[%emt 0:00:01]} 7. O-O {[%emt 0:00:02]} Bd6 {[%emt 0:00:01]} 8. Nc3 {[%emt 0:00:01]} b5 {[%emt 0:00:01] is cutting edge theory. D46: Semi-Slav: 5 e3 Nbd7 6 Bd3, Black avoids the Meran.} 9. Bb3 {[%emt 0:00:01]} b4 {[%emt 0:00:49]} 10. Na4 {[%emt 0:00:04][%cal Oe3e4]} Bb7 {[%emt 0:01:39] White has an edge.} 11. e4 $5 {[%emt 0:00:05][%mdl 4] Leaves trodden paths.} Nxe4 {[%emt 0:00:25]} 12. Re1 {[%emt 0:00:03]} Nef6 {[%emt 0:01:14]} 13. Ng5 $1 {[%emt 0:00:03][%cal Og5f7]} O-O {[%emt 0:03:11] [#]} 14. Nxe6 $146 {[%emt 0:00:04]} ({Predecessor:} 14. Qd3 Re8 15. Bc2 g6 16. Qh3 Qc7 17. Re4 c5 18. Rh4 h5 19. dxc5 Nxc5 20. Be3 {0-1 (33) Matsuura,F (2289)-Quintiliano Pinto,R (2378) Pocos de Caldas 2014}) 14... fxe6 {[%emt 0:00:20]} 15. Rxe6 {[%emt 0:00:02]} Nd5 {[%emt 0:01:04][%cal Od6h2]} 16. Rxd6 {[%emt 0:00:05]} Qe7 {[%emt 0:00:18] [#]} 17. Rxd7 $1 {[%emt 0:00:07]} Qxd7 {[%emt 0:00:01]} 18. Nc5 {[%emt 0:00:03]} Qf7 {[%emt 0:00:32]} 19. f3 {[%emt 0:00:09][%mdl 1024] White has compensation.} Bc8 {[%emt 0:01:34]} 20. Bd2 {[%emt 0:00:48]} a5 {[%emt 0:01:01]} 21. Be1 {[%emt 0:00:40][%cal Bd2e1,Be1g3,Bg3e5][%mdl 32]} Bf5 {[%emt 0:00:32]} 22. Bg3 {[%emt 0:00:15]} Kh8 {[%emt 0:00:28]} 23. Qd2 {[%emt 0:00:34]} Rfe8 {[%emt 0:00:40]} 24. Be5 {[%emt 0:00:40]} Ra7 {[%emt 0:00:52]} 25. a3 {[%emt 0:03:22]} Rea8 {[%emt 0:01:07]} 26. h3 {[%emt 0:01:27]} Bg6 {[%emt 0:00:33]} 27. Kh2 {[%emt 0:00:31]} Kg8 {[%emt 0:00:38]} 28. Bc4 {[%emt 0:01:51]} Kh8 {[%emt 0:00:10]} 29. Qe1 {[%emt 0:00:11]} Kg8 {[%emt 0:00:40]} 30. Qg3 {[%emt 0:00:15]} Re8 {[%emt 0:00:24]} 31. Ne4 {[%emt 0:00:16] And now axb4 would win.} ({But not} 31. axb4 axb4 32. Rc1 (32. Rxa7 Qxa7 33. Na6 Qe7 $14) 32... Kh8 $14) 31... Qe7 {[%emt 0:00:25]} 32. h4 {[%emt 0:01:08][%cal Oh4h5] Hoping for h5! White is much more active.} Kh8 {[%emt 0:00:31]} (32... bxa3 $16 33. bxa3 (33. Rxa3 Kh8 $14) 33... Kh8) 33. Nd6 $18 {[%emt 0:04:02] Strongly threatening Bxd5.} Rf8 {[%emt 0:00:06]} (33... Rd8 $142) 34. Re1 $2 {[%emt 0:01:20]} (34. Bxd5 $18 {and White stays clearly on top.} cxd5 35. axb4) 34... Rd7 {[%emt 0:00:20]} (34... bxa3 $142 35. bxa3 Nf6) 35. axb4 {[%emt 0:00:48]} axb4 {[%emt 0:00:06]} 36. Rc1 {[%emt 0:00:31] Threatens to win with Bxd5.} Ne3 {[%emt 0:00:37]} 37. Ba6 {[%emt 0:00:54]} (37. Bb3 $16) 37... Qd8 {[%emt 0:00:19]} 38. Rxc6 {[%emt 0:00:06][%cal Oh4h5]} (38. h5 $5 Bxh5 39. Rxc6 $16) 38... Qa5 $2 {[%emt 0:00:24][%mdl 8192] Loses the game.} (38... Qa8 $14 39. Bb5 Qxc6 40. Bxc6 Nf1+ 41. Kh3 Nxg3 42. Bxd7 Nf5) 39. Qg5 {[%emt 0:00:05] White is clearly winning.} Nd5 {[%emt 0:00:21]} 40. Bc4 {[%emt 0:00:08] Black must now prevent Bxd5. A strong pair of Bishops.} Ne7 {[%emt 0:00:05] [#]} 41. Bxg7+ $1 {[%emt 0:00:16][%mdl 512]} Kxg7 {[%emt 0:00:10]} 42. Qxa5 {[%emt 0:00:00] Weighted Error Value: White=0.19 (very precise) /Black=0.20 (precise)} 1-0

[Event "MCCT Chessable Masters 2022"]
[Site "Online"]
[Date "2022.05.16"]
[Round "10.4"]
[White "Tari, Aryan"]
[Black "Van Foreest, Jorden"]
[Result "1-0"]
[ECO "C17"]
[WhiteElo "2654"]
[BlackElo "2715"]
[Annotator "TA"]
[PlyCount "81"]
[EventDate "2022.05.19"]
[EventType "tourn"]
[EventCountry "NET"]
[SourceTitle "playchess.com"]
[Source "ChessBase"]
[SourceQuality "1"]
[TimeControl "900+10"]

{[%evp 17,81,29,25,24,31,27,33,27,23,27,29,26,68,76,93,83,102,102,114,109,159,171,173,122,159,72,76,81,79,73,83,87,72,68,76,26,31,27,103,117,154,152,145,157,129,158,136,158,133,114,418,400,488,452,626,363,734,731,698,661,1109,1113,1487,1554,5693,5636]} 1. e4 {[%emt 0:00:00]} e6 {[%emt 0:00:00]} 2. d4 {[%emt 0:00:04]} d5 {[%emt 0:00:02]} 3. Nc3 {[%emt 0:00:01]} Bb4 {[%emt 0:00:02]} 4. e5 {[%emt 0:00:08]} c5 {[%emt 0:00:03]} 5. Bd2 {[%emt 0:00:30]} Nc6 {[%emt 0:02:01]} 6. Nb5 {[%emt 0:00:05]} Bxd2+ {[%emt 0:00:02]} 7. Qxd2 {[%emt 0:00:00]} Nxd4 {[%emt 0:00:03]} 8. Nxd4 {[%emt 0:00:04]} cxd4 {[%emt 0:00:02]} 9. f4 {[%emt 0:00:03]} Qb6 {[%emt 0:00:39]} 10. O-O-O {[%emt 0:00:08][%mdl 1024] White has compensation. C17: French: 3 Nc3 Bb4 4 e5 c5 sidelines.} Ne7 {[%emt 0:00:06]} 11. Nf3 {[%emt 0:00:58][%cal Bg1f3,Bf3d4,Bd4b5,Bb5d6][%mdl 32]} Nc6 {[%emt 0:00:46]} 12. g4 $5 {[%emt 0:01:36][%cal Bg2g4,Bg4g5][%mdl 4] White is slightly better. Leaves trodden paths.} Bd7 {[%emt 0:00:09]} 13. h4 {[%emt 0:01:21]} O-O-O {[%emt 0:01:48] [#]} 14. Nxd4 $146 {[%emt 0:00:53]} ({Predecessor:} 14. h5 Kb8 15. Kb1 f6 16. h6 fxe5 17. Nxe5 Nxe5 18. fxe5 gxh6 19. Rxh6 Rdg8 20. Qf4 {1-0 (34) Lobanov,S (2394)-Xu,J (1930) Porto Carras 2015}) 14... h5 {[%emt 0:01:11]} 15. Nb5 {[%emt 0:01:03] Strongly threatening Nd6+.} Kb8 {[%emt 0:02:55]} (15... hxg4 $2 16. Nd6+ Kb8 17. Nxf7 $18) 16. Nd6 {[%emt 0:00:14]} Be8 {[%emt 0:00:41]} (16... hxg4 17. Nxf7 Rc8 18. Nxh8 $18) 17. g5 {[%emt 0:01:26]} Qc7 {[%emt 0:00:57]} 18. Rh3 {[%emt 0:00:26]} f6 {[%emt 0:00:23]} (18... Rxd6 $142 19. exd6 Qxd6) 19. Rb3 $16 {[%emt 0:01:25]} (19. gxf6 $6 gxf6 20. Rb3 (20. Nxe8 Rhxe8 21. exf6 Rf8 $11) 20... Na5 $16) 19... Na5 {[%emt 0:00:05] [#]} 20. Rc3 {[%emt 0:00:48]} (20. Qxa5 $1 $18 {[%mdl 512]} Qxa5 21. Nxb7 Qxa2 22. Nxd8+ Kc8 23. Nxe6 Qa1+ 24. Kd2 Qa5+ 25. c3) 20... Nc6 {[%emt 0:00:04]} 21. Qe1 {[%emt 0:01:53]} ({Don't do} 21. gxf6 gxf6 22. Bb5 (22. Nxe8 Rdxe8 23. exf6 Rhf8 $11) 22... Rf8 $16) (21. Nxe8 $142 Rhxe8 22. exf6 (22. gxf6 gxf6 23. exf6 Rf8 $11)) 21... fxe5 {[%emt 0:00:11]} 22. fxe5 {[%emt 0:00:01]} Rf8 {[%emt 0:00:56]} 23. Qg3 {[%emt 0:00:39]} Ka8 {[%emt 0:01:25]} 24. Bh3 {[%emt 0:00:23]} Bd7 {[%emt 0:00:08]} 25. Kb1 {[%emt 0:00:35]} Qa5 {[%emt 0:00:55]} 26. Bg2 {[%emt 0:00:53]} (26. Rb3 $16 Rb8 27. c4) 26... Qa4 $11 {[%emt 0:00:13]} 27. g6 {[%emt 0:00:48]} Rf4 {[%emt 0:00:59]} (27... Nb4 28. a3 Nc6 29. Bf3 $16) (27... Nd4 $11) 28. b3 $16 {[%emt 0:00:28]} Qa5 {[%emt 0:00:02]} 29. Rxc6 $1 {[%emt 0:01:14]} ({Don't play} 29. Qxf4 $6 Qxc3 30. Qf3 Qc5 $11) 29... Rg4 {[%emt 0:00:04]} 30. Qc3 {[%emt 0:00:01]} Qxc3 {[%emt 0:00:06]} 31. Rxc3 {[%emt 0:00:00][%cal Bc6c3,Bc3c7,Bc7g7][%mdl 32]} Rxg2 {[%emt 0:00:01]} 32. Rc7 {[%emt 0:00:21] Black must now prevent Rf1.} Be8 {[%emt 0:00:00]} 33. Nxb7 {[%emt 0:01:01] 0x0.001de6d20279dp-1022s more active pieces.} Rb8 {[%emt 0:00:30][%mdl 8192] Loses the game.} (33... Rd7 $16 {is more resistant.} 34. Rxd7 Bxd7) 34. Na5 $18 {[%emt 0:00:03] Threatens to win with Rf1.} Rg4 {[%emt 0:02:03]} (34... Bxg6 {is a self mate.} 35. Nc6) 35. Kc1 {[%emt 0:00:48] aiming for Rf1.} Rf4 {[%emt 0:00:20] Prevents Rf1.} 36. Rxg7 {[%emt 0:00:06]} Rc8 $2 {[%emt 0:00:00]} (36... Rg4 37. Re7 Rxg6) 37. Rg8 {[%emt 0:00:26] White is clearly winning.} Rg4 {[%emt 0:00:06]} 38. g7 {[%emt 0:00:18]} Bd7 {[%emt 0:00:23] [#]} 39. Rf1 $1 {[%emt 0:00:10]} Kb8 {[%emt 0:00:32]} (39... Rxg8 40. Rf8+) 40. Rxc8+ {[%emt 0:00:03]} Bxc8 {[%emt 0:00:12]} 41. Rf7 {[%emt 0:00:01] Weighted Error Value: White=0.21 (precise) /Black=0.36} 1-0

[Event "MCCT Chessable Masters 2022"]
[Site "Online"]
[Date "2022.05.16"]
[Round "10.5"]
[White "Grandelius, Nils"]
[Black "Mamedyarov, Shakhriyar"]
[Result "0-1"]
[ECO "E05"]
[WhiteElo "2635"]
[BlackElo "2770"]
[Annotator "TA"]
[PlyCount "58"]
[EventDate "2022.05.19"]
[EventType "tourn"]
[EventCountry "NET"]
[SourceTitle "playchess.com"]
[Source "ChessBase"]
[SourceQuality "1"]
[TimeControl "900+10"]

{[%evp 11,58,17,35,6,0,1,0,12,36,0,47,0,43,47,71,49,56,58,39,39,31,45,69,62,75,13,13,11,12,7,7,0,0,0,19,16,10,-16,23,0,0,0,0,-8,-12,-172,-147,-252,-241]} 1. Nf3 {[%emt 0:00:00]} Nf6 {[%emt 0:00:00]} 2. g3 {[%emt 0:00:03]} d5 {[%emt 0:00:15]} 3. Bg2 {[%emt 0:00:06]} e6 {[%emt 0:00:06]} 4. O-O {[%emt 0:00:05]} Be7 {[%emt 0:00:02]} 5. d4 {[%emt 0:00:08]} O-O {[%emt 0:00:01]} 6. c4 {[%emt 0:00:04]} dxc4 {[%emt 0:00:02]} 7. Qa4 {[%emt 0:00:11] E05: Open Catalan: 5 Nf3 Be7.} b6 {[%emt 0:00:04]} 8. Ne5 {[%emt 0:02:55]} Qxd4 {[%emt 0:00:12]} 9. Bxa8 {[%emt 0:00:02] [#] Threatens to win with Nc6. The position is equal.} Qxe5 {[%emt 0:00:03]} 10. Nc3 {[%emt 0:00:15] [#]} Qh5 $146 {[%emt 0:01:06]} (10... Ba6 $11) ({Predecessor:} 10... Bd7 11. Qxc4 c6 12. Rd1 b5 13. Qf4 Qh5 14. Qf3 Qxf3 15. exf3 Nd5 16. Bb7 b4 17. Nxd5 exd5 {1-0 (32) Kourousis,E (2394)-Kozusek,D (2339) Prague 2019}) 11. Bg2 {[%emt 0:00:39]} (11. Bf3 $14 {might be stronger.} Qf5 12. Qxa7 (12. Qxc4 Bc5 $16)) 11... Bc5 {[%emt 0:02:21]} ({Don't take} 11... Ng4 12. h3 Nf6 13. Qxa7 $16 (13. Qxc4 Bd6 $16)) 12. Qxc4 {[%emt 0:01:34]} Ba6 {[%emt 0:00:03]} 13. Qh4 {[%emt 0:01:38]} Bxe2 {[%emt 0:00:56] [#] ...Qxh4 is the strong threat.} 14. Qxh5 {[%emt 0:01:13]} Bxh5 {[%emt 0:00:00]} 15. Bf4 {[%emt 0:00:12]} Na6 {[%emt 0:02:22][%cal Bb8a6,Ba6c5,Bc5b3][%mdl 32]} 16. a3 {[%emt 0:01:53] Inhibits Nb4.} Bd6 {[%emt 0:02:49]} 17. Bxd6 {[%emt 0:03:25]} cxd6 {[%emt 0:00:00]} 18. Rfe1 {[%emt 0:00:02]} ({Better is} 18. a4 $16) 18... Nc5 $11 {[%emt 0:00:39]} 19. b4 {[%emt 0:00:40][%mdl 1024] White has compensation.} Nb3 {[%emt 0:00:12]} 20. Ra2 {[%emt 0:00:01] With the idea Nb5.} d5 $1 {[%emt 0:00:46]} 21. Nb5 {[%emt 0:00:44]} a6 $1 {[%emt 0:00:11]} 22. Rb2 {[%emt 0:00:10]} axb5 {[%emt 0:00:18]} 23. Rxb3 {[%emt 0:00:01]} Rc8 {[%emt 0:00:05] Prevents Rc3.} 24. h3 {[%emt 0:01:53]} Ne8 {[%emt 0:00:57]} 25. g4 {[%emt 0:00:24]} Bg6 {[%emt 0:00:02]} 26. f4 {[%emt 0:00:00][%cal Of4f5]} Bc2 {[%emt 0:01:10] Prevents f5.} 27. Rb2 {[%emt 0:00:39]} d4 {[%emt 0:01:18][%cal Bd5d4,Bd4d3][%mdl 32] Threatening ...d3.} 28. Kf2 $2 {[%emt 0:00:37]} (28. f5 $11 {and White stays safe.}) 28... d3 $19 {[%emt 0:00:21] Strongly threatening ...d2.} 29. Ke3 {[%emt 0:00:24]} (29. Bf3 $17) 29... Nd6 {[%emt 0:00:02] Weighted Error Value: White=0.26 (precise) /Black=0.11 (very precise)} 0-1

[Event "MCCT Chessable Masters 2022"]
[Site "Online"]
[Date "2022.05.16"]
[Round "10.6"]
[White "Praggnanandhaa R"]
[Black "Hansen, Eric"]
[Result "1-0"]
[ECO "D61"]
[WhiteElo "2642"]
[BlackElo "2606"]
[Annotator "TA"]
[PlyCount "121"]
[EventDate "2022.05.19"]
[EventType "tourn"]
[EventCountry "NET"]
[SourceTitle "playchess.com"]
[Source "ChessBase"]
[SourceQuality "1"]
[TimeControl "900+10"]

{[%evp 19,121,0,0,0,0,-6,6,0,0,0,0,2,16,4,39,0,0,0,15,0,0,0,0,0,14,8,34,28,33,27,52,55,52,60,78,70,61,67,66,19,63,17,20,15,22,6,10,8,44,0,0,0,0,0,0,-51,-63,-56,-64,-22,-47,-98,-106,-111,-96,-102,0,-264,-155,-119,-137,-343,-320,-328,-307,-248,-287,-284,0,0,0,0,0,0,0,0,0,0,0,0,0,0,0,0,0,0,29978,29979,29979,29980,29981,29982,29980,29981]} 1. d4 {[%emt 0:00:00]} Nf6 {[%emt 0:00:00]} 2. c4 {[%emt 0:00:03]} e6 {[%emt 0:00:16]} 3. Nf3 {[%emt 0:00:02]} d5 {[%emt 0:00:17]} 4. Nc3 {[%emt 0:00:03]} c6 {[%emt 0:01:53]} 5. Bg5 {[%emt 0:00:17]} h6 {[%emt 0:00:17]} 6. Bh4 {[%emt 0:00:03]} Nbd7 {[%emt 0:00:22]} 7. e3 {[%emt 0:00:04]} Be7 {[%emt 0:00:54]} 8. Qc2 {[%emt 0:00:03]} O-O {[%emt 0:00:26]} 9. Rd1 {[%emt 0:00:03]} b6 {[%emt 0:00:15]} 10. Be2 {[%emt 0:01:54]} Bb7 {[%emt 0:00:17]} 11. O-O {[%emt 0:00:04] D61: Queen's Gambit Declined: Classical: 7 Qc2.} Rc8 {[%emt 0:00:20]} 12. e4 $5 {[%emt 0:01:36][%mdl 4] Leaves trodden paths.} Nxe4 {[%emt 0:00:07]} (12... dxc4 {keeps more tension.} 13. Bxc4 b5 14. Qb3 g5) 13. Bxe7 {[%emt 0:00:04] The position is equal.} Qxe7 {[%emt 0:00:02]} 14. Nxe4 {[%emt 0:00:00]} dxe4 {[%emt 0:00:00]} 15. Qxe4 {[%emt 0:00:01]} Nf6 {[%emt 0:00:01]} 16. Qe3 {[%emt 0:00:05] [#]} Rfd8 $146 {[%emt 0:04:55]} ({Predecessor:} 16... Rfe8 17. c5 Nd5 18. Qa3 b5 19. Bd3 a5 20. Bb1 a4 21. Qd3 Nf6 22. Ne5 Red8 {1-0 (31) Vrolijk,L (2410)-Brueckner,T (2375) Chess.com INT 2017}) 17. Ne5 {[%emt 0:03:07]} c5 {[%emt 0:00:19]} 18. dxc5 {[%emt 0:00:10]} bxc5 {[%emt 0:01:29]} 19. Bf3 {[%emt 0:03:40]} Bxf3 {[%emt 0:00:17]} 20. Qxf3 {[%emt 0:00:00] Nc6 is the strong threat.} Qc7 {[%emt 0:00:06] Prevents Nc6.} 21. Qe3 {[%emt 0:00:14]} Rb8 {[%emt 0:00:31]} 22. b3 {[%emt 0:00:28]} Ne8 {[%emt 0:02:24]} 23. Rd3 {[%emt 0:01:44]} Nd6 {[%emt 0:00:27]} 24. g4 {[%emt 0:01:47] Prevents Nf5.} Ne8 {[%emt 0:00:50]} 25. Rfd1 {[%emt 0:00:10]} Rxd3 {[%emt 0:00:01]} 26. Rxd3 {[%emt 0:00:05] And now Rd7 would win.} Nf6 {[%emt 0:00:01] Against Rd7} 27. Kg2 {[%emt 0:00:58]} Rb6 {[%emt 0:00:37]} 28. h4 {[%emt 0:00:22]} Rd6 $1 {[%emt 0:00:09]} 29. g5 {[%emt 0:00:40]} (29. Rxd6 $14 {deserves consideration.} Qxd6 30. g5 hxg5 31. hxg5) 29... hxg5 {[%emt 0:00:02]} 30. hxg5 {[%emt 0:00:00]} (30. Rxd6 $14 Qxd6 31. hxg5) 30... Rxd3 $11 {[%emt 0:00:01]} 31. Nxd3 {[%emt 0:00:02][%mdl 4096] Endgame KQN-KQN} Nd7 {[%emt 0:00:03]} ({Not} 31... Ng4 32. Qxc5 Qb7+ 33. Kg3 $18 (33. f3 Qd7 $16)) 32. Qe4 {[%emt 0:00:07] Active counter play!} Qd6 {[%emt 0:00:32]} 33. g6 {[%emt 0:01:19] White wants to play Qa8+.} Kf8 {[%emt 0:01:51]} (33... f5 {feels hotter.} 34. Qa8+ Nf8 35. Qe8 Qd7) 34. Qf3 {[%emt 0:00:56][%csl Gg6][%cal Rf3f7]} f5 {[%emt 0:00:16]} 35. Nf4 {[%emt 0:00:09]} Ke7 {[%emt 0:00:06]} 36. Qe3 {[%emt 0:00:17]} Ne5 {[%emt 0:00:11]} 37. b4 {[%emt 0:00:26]} (37. Qh3 $11) 37... Nxc4 $15 {[%emt 0:00:25]} 38. Qxc5 {[%emt 0:00:02]} Qxc5 {[%emt 0:00:18]} 39. bxc5 {[%emt 0:00:00] KN-KN} Ne5 {[%emt 0:00:01]} 40. Kg3 {[%emt 0:00:03]} (40. Kf1 $15) 40... Kf6 $1 $17 {[%emt 0:00:04]} 41. Kh4 {[%emt 0:00:35]} Nc6 {[%emt 0:00:06]} 42. Kh5 {[%emt 0:00:13]} Ne5 {[%emt 0:00:24]} ({Black should try} 42... Nd4 $17 43. a4 Nc6) 43. f3 $2 {[%emt 0:00:11][%mdl 8192]} (43. Kh4 $11 {and White has nothing to worry.}) 43... Nc6 {[%emt 0:00:10]} ({Worse is} 43... Nxf3 44. c6 Ke7 45. c7 $11) (43... Ke7 $1 $19 44. c6 Nxc6) 44. Nd3 {[%emt 0:00:08]} e5 {[%emt 0:00:06]} 45. a3 $2 {[%emt 0:00:11]} (45. Nb2 $17) 45... e4 $19 {[%emt 0:00:09]} 46. fxe4 {[%emt 0:00:02]} fxe4 {[%emt 0:00:01]} 47. Nf4 {[%emt 0:00:04] [#]} Kf5 {[%emt 0:00:04]} 48. Ng2 {[%emt 0:00:04]} Ne5 $2 {[%emt 0:00:24]} ({Better is} 48... Ne7 $19 {Hoping for ...Ke5.} 49. Kh4 Nxg6+ 50. Kg3 Ke5) 49. Ne3+ $11 {[%emt 0:00:28]} Kf4 {[%emt 0:00:01]} 50. Nd5+ {[%emt 0:00:09]} Kf3 {[%emt 0:00:06]} 51. Kg5 $1 {[%emt 0:00:02]} e3 {[%emt 0:00:02] ( -> ...e2)} (51... Nc6 $5 52. Kf5 e3 $11) 52. Nc3 {[%emt 0:00:06] Strongly threatening Kf5.} e2 {[%emt 0:00:43]} (52... Nc6 $5 53. Kf5 e2 54. Nxe2 Kxe2 $11) 53. Nxe2 {[%emt 0:00:01]} Kxe2 {[%emt 0:00:00] KN-K3P} 54. Kf5 {[%emt 0:00:01]} Nc6 {[%emt 0:00:03]} 55. Ke6 {[%emt 0:00:42]} Kd3 {[%emt 0:00:01]} 56. Kf7 {[%emt 0:00:11]} Kc4 {[%emt 0:00:20]} 57. Kxg7 {[%emt 0:00:02] Intending Kf6 and mate.} Ne5 $2 {[%emt 0:00:22][%mdl 8192]} (57... Kxc5 $11 58. Kf6 Kd6) 58. c6 $1 {[%emt 0:00:15][%mdl 64] Promotion. White mates.} Nxc6 {[%emt 0:00:14] [#]} 59. Kf6 $1 {[%emt 0:00:02]} Nb8 {[%emt 0:00:10]} 60. g7 {[%emt 0:00:02]} Nd7+ {[%emt 0:00:10]} 61. Kf5 {[%emt 0:00:01] White used his chance.  Weighted Error Value: White=0.22 (precise) /Black=0.33} 1-0

[Event "MCCT Chessable Masters 2022"]
[Site "Online"]
[Date "2022.05.16"]
[Round "10.7"]
[White "Harikrishna, Pentala"]
[Black "Ding, Liren"]
[Result "0-1"]
[ECO "B22"]
[WhiteElo "2705"]
[BlackElo "2806"]
[Annotator "TA"]
[PlyCount "68"]
[EventDate "2022.05.19"]
[EventType "tourn"]
[EventCountry "NET"]
[SourceTitle "playchess.com"]
[Source "ChessBase"]
[SourceQuality "1"]
[TimeControl "900+10"]

{[%evp 9,68,36,17,-58,-57,-51,-62,-83,-81,-82,-81,-64,-63,-86,-91,-142,-54,-51,-46,-58,-54,-71,0,-14,-20,-28,0,-5,-10,-23,0,-275,-282,-256,-272,-320,-128,-340,-327,-347,-343,-421,-435,-560,-582,-576,-591,-594,-558,-687,-662,-642,-637,-670,-591,-1529,-1529,-1334,-1324,-615,-323]} 1. e4 {[%emt 0:00:00]} c5 {[%emt 0:00:00]} 2. c3 {[%emt 0:00:03]} Nf6 {[%emt 0:00:08]} 3. e5 {[%emt 0:00:02]} Nd5 {[%emt 0:00:00]} 4. Bc4 {[%emt 0:00:00]} Nb6 {[%emt 0:00:13]} 5. Bb3 {[%emt 0:00:02]} d6 {[%emt 0:00:17] [#]} 6. e6 $146 {[%emt 0:00:21] B22: Sicilian: 2 c3.} (6. Nf3 $11) ({Predecessor:} 6. exd6 Qxd6 7. Na3 Bf5 8. d4 cxd4 9. Nf3 dxc3 10. Qxd6 exd6 11. bxc3 Be7 12. Nb5 Na6 {0-1 (86) Jones,G (2672)-Volokitin,A (2687) Germany 2022}) 6... Bxe6 $15 {[%emt 0:00:11]} 7. Bxe6 {[%emt 0:00:01]} fxe6 {[%emt 0:00:00]} 8. d4 {[%emt 0:00:03] Black is slightly better.} cxd4 {[%emt 0:00:17]} 9. cxd4 {[%emt 0:00:01]} Nc6 {[%emt 0:00:04]} 10. Nf3 {[%emt 0:00:02]} g6 {[%emt 0:00:26]} 11. Ng5 {[%emt 0:03:07]} Qd7 {[%emt 0:00:04]} 12. Qf3 {[%emt 0:00:01]} (12. Be3 $142) 12... O-O-O {[%emt 0:01:55]} (12... Nxd4 $17 13. Qf7+ Kd8) 13. Nf7 {[%emt 0:00:53][%csl LRd8,LRh8]} Bg7 {[%emt 0:00:02]} 14. Nxd8 {[%emt 0:00:20]} Nxd4 {[%emt 0:01:29]} 15. Qd3 {[%emt 0:01:11] [#] Hoping for Nf7.} Kxd8 {[%emt 0:02:33]} (15... Rxd8 $17 16. O-O Qb5 17. Qxb5 Nxb5) 16. Nc3 $11 {[%emt 0:00:28]} Qc6 {[%emt 0:01:10]} 17. O-O {[%emt 0:00:23][%cal Oc1h6]} Qc4 {[%emt 0:00:01]} 18. Qd1 {[%emt 0:00:58]} Nd5 $36 {[%emt 0:00:13][%mdl 2048] Black is more active.} 19. Nxd5 {[%emt 0:01:37]} exd5 {[%emt 0:00:00]} 20. Be3 $2 {[%emt 0:00:04][%mdl 8192]} (20. Kh1 $11 {and White has nothing to worry.}) 20... Ne2+ $19 {[%emt 0:00:34]} 21. Kh1 {[%emt 0:00:08] [#] And now Re1 would win.} Bxb2 {[%emt 0:00:16]} 22. Bxa7 {[%emt 0:00:51]} Kd7 {[%emt 0:00:51]} (22... Bxa1 $19 {has better winning chances.} 23. Qxa1 d4) 23. Rb1 $2 {[%emt 0:00:37] Now White is beyond hope.} (23. Qb1 $17 {was the only defense.} Bxa1 24. Qxb7+ Ke6 25. Rxa1) 23... Nc3 {[%emt 0:00:02]} 24. Qf3 {[%emt 0:00:22]} Nxb1 {[%emt 0:00:08]} 25. Rxb1 {[%emt 0:00:02]} Ra8 {[%emt 0:00:10] Black is clearly winning.} ({Avoid the trap} 25... Qxa2 $2 26. Qd3 Ra8 27. Qb5+ Ke6 28. Rxb2 Qa1+ 29. Rb1 Rxa7 30. Qb6 $19) 26. Be3 {[%emt 0:01:08]} Rxa2 {[%emt 0:00:31]} 27. Qh3+ {[%emt 0:00:05]} Kc7 {[%emt 0:00:20]} 28. Qxh7 {[%emt 0:00:14]} Qe4 {[%emt 0:00:05]} 29. Re1 {[%emt 0:00:14]} Ra1 {[%emt 0:00:52]} 30. Rxa1 {[%emt 0:00:01]} Bxa1 {[%emt 0:00:00]} 31. h3 {[%emt 0:00:17]} Kd7 {[%emt 0:00:38] aiming for ...Be5.} 32. Qg8 {[%emt 0:00:24]} Be5 {[%emt 0:00:11] ( -> ...Qb1+)} 33. f4 {[%emt 0:00:23]} Qxe3 {[%emt 0:00:11]} 34. fxe5 {[%emt 0:00:04]} Qe1+ {[%emt 0:00:01] Weighted Error Value: White=0.68/Black=0.23 (precise)} 0-1